bitfinex-derivatives/quotes_ETHF0:USTF0_20251118
["timestamp","ask_amount","ask_price","bid_price","bid_amount"]
[1763436160562,3.2078,2982.8,2982.3,0.7803]
[1763436161164,0.0083147,2983.0,2982.3,3.9881]
[1763436161373,0.0083147,2983.0,2982.9,0.7803]
[1763436162765,0.7724,2982.7,2982.0,0.4897]
[1763436163059,3.2161147,2983.0,2982.4,0.7803]
[1763436164051,3.2161147,2983.0,2982.2,3.75167]
[1763436164052,3.2161147,2983.0,2982.6,0.4897]
[1763436164860,3.2161147,2983.0,2982.9,0.7803]
[1763436165165,3.2161147,2983.0,2982.6,0.4897]
[1763436165462,3.2161147,2983.0,2982.2,3.2078]
[1763436165866,5.38037339,2983.0,2982.2,3.2078]
[1763436166270,0.82118476,2982.9,2982.2,3.2078]
[1763436166863,3.2161147,2983.0,2982.2,3.2078]
[1763436167263,0.82112004,2982.9,2982.2,3.2078]
[1763436167666,3.2161147,2983.0,2982.2,3.2078]
[1763436168068,3.2161147,2983.0,2982.6,0.4897]
[1763436169065,0.0083147,2983.0,2982.6,0.4897]
[1763436170770,3.2078,2984.0,2983.6,0.7803]
[1763436171072,3.2078,2984.3,2983.6,0.7803]
[1763436171273,0.82102562,2984.2,2983.6,0.7803]
[1763436171477,5.37205869,2983.7,2982.7,3.2078]
[1763436171766,0.00502698,2983.5,2982.9,0.00502698]
[1763436171960,0.00864926,2983.5,2983.4,0.7803]
[1763436173066,0.8237633,2984.0,2983.9,0.7803]
[1763436173275,3.2078,2984.5,2983.9,0.7803]
[1763436173475,0.82402515,2984.4,2983.9,0.7803]
[1763436173863,0.82402515,2984.4,2984.3,0.7803]
[1763436174069,3.2078,2984.5,2984.4,1.27]
[1763436174467,3.21208169,2984.5,2984.4,1.27274442]
[1763436174670,0.00428169,2984.5,2984.4,1.27274442]
[1763436176283,0.77668169,2984.5,2984.4,0.00274442]
[1763436176682,1.59812807,2984.5,2984.4,0.00274442]
[1763436176887,1.59812807,2984.5,2983.2,0.4634]
[1763436176888,3.2078,2984.3,2983.2,0.4634]
[1763436177179,7.45376555,2983.3,2982.6,0.4897]
[1763436177383,3.2078,2982.7,2982.6,0.4897]
[1763436177586,4.02924638,2982.7,2982.6,0.4897]
[1763436177784,12.54157557,2982.7,2981.4,0.4634]
[1763436178084,3.2078,2982.1,2982.0,0.49239565]
[1763436178282,3.21092193,2982.1,2982.0,0.49239565]
[1763436178474,0.00312193,2982.1,2982.0,0.49239565]
[1763436179498,0.00502698,2982.3,2982.0,0.49239565]
[1763436180283,3.2078,2982.8,2982.7,0.4634]
[1763436180590,3.2078,2983.7,2982.8,0.54375]
[1763436180793,0.81835354,2983.6,2983.4,0.4634]
[1763436181000,1.16852924,2983.5,2982.1,3.2078]
[1763436181293,3.2078,2982.8,2982.1,3.2078]
[1763436181488,0.82166084,2982.7,2982.1,3.2078]
[1763436181889,0.0033073,2982.7,2982.5,3.2078]
[1763436182195,0.0033073,2982.7,2982.2,3.2078]
[1763436186596,0.0033073,2982.7,2982.6,1.2242]
[1763436186806,1.16803246,2984.1,2983.2,0.4634]
[1763436187099,3.2078,2984.6,2983.8,3.2078]
[1763436187300,0.81144571,2984.5,2983.9,3.2078]
[1763436187492,3.2078,2984.6,2984.1,3.2078]
[1763436187798,3.21072799,2984.6,2984.1,0.00893446]
[1763436189301,0.00292799,2984.6,2984.3,3.2078]
[1763436189495,0.00292799,2984.6,2984.5,3.2078]
[1763436190600,0.00292799,2984.6,2984.1,0.00893446]
[1763436191198,0.00292799,2984.6,2984.2,3.2078]
[1763436192497,0.00292799,2984.6,2984.5,3.2078]
[1763436192896,0.00292799,2984.6,2984.2,3.2078]
[1763436193498,0.00292799,2984.6,2984.5,3.2078]
[1763436193900,0.00292799,2984.6,2984.5,3.9686]
[1763436194894,3.2078,2985.1,2984.5,3.9686]
[1763436194895,3.2078,2985.1,2985.0,0.7608]
[1763436195198,3.2078,2985.1,2984.5,3.2078]
[1763436195893,3.21050399,2985.1,2984.5,3.2078]
[1763436196403,0.4446,2985.0,2984.2,3.2078]
[1763436196598,0.4446,2985.0,2984.5,3.2078]
[1763436198404,0.00270399,2985.1,2985.0,1.2242]
[1763436198899,0.3964,2986.2,2985.0,1.2242]
[1763436198900,3.2078,2986.0,2985.6,0.8262]
[1763436199510,3.2078,2986.4,2985.9,0.8262]
[1763436199701,0.09064158,2986.5,2986.0,3.2078]
[1763436199905,0.00416516,2986.4,2986.3,0.8262]
[1763436200102,0.81406516,2986.4,2986.3,0.00237061]
[1763436200506,0.00416516,2986.4,2986.3,0.00237061]
[1763436201000,0.00416516,2986.4,2985.5,0.00502698]
[1763436201001,10.02186516,2986.4,2985.5,0.00502698]
[1763436201201,3.2078,2986.1,2985.5,0.00502698]
[1763436201409,3.21196516,2986.4,2985.8,3.2078]
[1763436202001,3.21196516,2986.4,2985.8,3.21059354]
[1763436204105,0.8099,2985.9,2985.8,0.00279354]
[1763436204604,1.3244,2985.6,2984.8,3.2078]
[1763436204809,4.5322,2985.6,2984.8,3.2078]
[1763436205405,3.2078,2985.3,2984.5,6.4098]
[1763436205607,0.00502698,2985.2,2984.6,0.00502698]
[1763436207311,3.6727,2985.0,2984.6,0.00502698]
[1763436207513,3.2078,2985.0,2984.6,0.00502698]
[1763436207911,0.00502698,2985.2,2984.6,0.00502698]
[1763436208512,0.00502698,2985.2,2985.1,0.7895]
[1763436209309,0.00502698,2985.2,2984.7,3.2078]
[1763436210110,0.00502698,2985.2,2985.1,0.7895]
[1763436210317,0.00502698,2985.2,2985.1,3.9973]
[1763436210716,3.2078,2985.8,2985.1,3.9973]
[1763436211612,3.2078,2986.1,2985.5,3.2078]
[1763436211810,3.2078,2986.1,2985.2,3.2078]
[1763436212018,3.21196516,2986.4,2985.6,3.6973]
[1763436213012,3.21196516,2986.4,2985.7,0.54323]
[1763436213220,0.00416516,2986.4,2986.3,0.7895]
[1763436215409,0.00416516,2986.4,2985.7,3.2078]
[1763436217419,0.00416516,2986.4,2985.4,3.2078]
[1763436217420,0.4649,2986.2,2985.4,3.2078]
[1763436217917,0.8081,2985.2,2984.6,0.00502698]
[1763436218117,2.97722919,2985.0,2983.8,3.2078]
[1763436218328,3.2078,2984.6,2983.8,3.2078]
[1763436219222,0.00502698,2984.5,2983.9,0.00502698]
[1763436219420,3.2078,2984.2,2983.9,0.00502698]
[1763436219625,3.2118383,2984.2,2983.9,0.00502698]
[1763436220126,0.0040383,2984.2,2983.9,0.00502698]
[1763436220327,3.2118383,2984.2,2983.9,0.00502698]
[1763436222223,0.8081,2984.0,2983.9,0.00502698]
[1763436222719,0.8081,2984.0,2982.6,0.4984]
[1763436222720,0.4649,2983.8,2982.9,3.2078]
[1763436222914,3.2078,2983.5,2982.9,3.2078]
[1763436223329,3.2118383,2984.2,2983.1,3.2078]
[1763436223530,3.2078,2983.9,2983.1,3.2078]
[1763436223719,3.2078,2983.9,2983.2,0.00502698]
[1763436225419,3.2078,2983.6,2983.2,0.00502698]
[1763436226126,3.2078,2984.0,2983.2,0.00502698]
[1763436226428,3.2078,2983.7,2983.2,0.00502698]
[1763436227129,0.8081,2983.3,2983.2,0.00502698]
[1763436227328,3.2078,2983.7,2983.2,0.00502698]
[1763436227626,3.2078,2983.7,2983.2,3.21282698]
[1763436228620,3.2078,2983.7,2983.6,0.7895]
[1763436229221,3.2078,2983.7,2983.2,3.71122698]
[1763436229222,3.2078,2983.7,2983.2,0.00502698]
[1763436229730,0.8081,2983.3,2983.2,0.00502698]
[1763436230235,1.273,2983.2,2981.3,2.39761657]
[1763436230426,3.6727,2983.2,2982.2,3.2078]
[1763436230621,3.6727,2983.2,2982.5,3.2078]
[1763436230931,0.4649,2983.8,2982.5,3.2078]
[1763436230932,3.2078,2983.5,2982.5,3.2078]
[1763436231135,3.2078,2983.5,2982.8,3.2078]
[1763436231326,0.00502698,2983.4,2982.9,0.00502698]
[1763436231627,0.8081,2983.0,2982.9,0.00502698]
[1763436232329,0.00502698,2983.4,2982.9,0.00502698]
[1763436234029,0.00502698,2983.4,2983.3,0.7895]
[1763436234227,0.00502698,2983.4,2983.1,3.2078]
[1763436234826,0.00502698,2983.4,2983.3,0.7895]
[1763436236137,0.54367,2983.3,2983.1,3.2078]
[1763436237139,0.717,2983.0,2982.9,0.00502698]
[1763436237536,0.4354,2983.2,2982.9,0.00502698]
[1763436237929,3.2078,2983.3,2982.9,0.00502698]
[1763436238126,0.4354,2983.2,2982.9,0.00502698]
[1763436238329,0.717,2983.0,2982.9,0.00502698]
[1763436238839,0.4354,2983.2,2982.9,0.00502698]
[1763436239042,1.1524,2982.6,2982.2,3.2078]
[1763436239335,3.2078,2983.0,2982.2,3.2078]
[1763436239937,0.4354,2982.6,2981.9,3.2078]
[1763436240137,3.2078,2982.9,2981.9,3.2078]
[1763436240340,3.2078,2982.9,2982.2,3.2078]
[1763436240637,0.717,2982.1,2982.0,0.00502698]
[1763436240840,0.00397419,2982.1,2982.0,0.78522698]
[1763436241543,0.00397419,2982.1,2982.0,0.00502698]
[1763436241729,0.00397419,2982.1,2982.0,0.78522698]
[1763436242637,0.72097419,2982.1,2982.0,0.00502698]
[1763436242844,0.72097419,2982.1,2981.0,3.2078]
[1763436242845,1.1524,2981.4,2981.0,3.2078]
[1763436243134,1.1524,2981.4,2979.8,10.868]
[1763436243135,3.2078,2981.1,2980.3,3.2078]
[1763436244041,0.00502698,2981.0,2980.6,3.2078]
[1763436244238,3.6432,2982.0,2980.9,3.2078]
[1763436244444,3.6432,2982.0,2980.7,2.16003358]
[1763436244445,3.6432,2982.0,2981.3,3.2078]
[1763436244740,0.00397419,2982.1,2981.6,3.2078]
[1763436244941,0.00397419,2982.1,2982.0,3.2078]
[1763436245142,1.16803246,2983.7,2982.0,3.2078]
[1763436245143,3.2078,2983.5,2982.1,0.54388]
[1763436245342,3.2078,2983.5,2982.6,3.2078]
[1763436245648,0.00502698,2982.9,2982.6,3.2078]
[1763436246040,0.00777639,2982.9,2982.6,3.21205496]
[1763436246940,3.21557639,2982.9,2982.6,0.00425496]
[1763436247142,0.4354,2982.7,2982.6,0.00425496]
[1763436247341,0.4354,2982.7,2982.4,0.00502698]
[1763436247546,3.2078,2982.5,2982.4,0.00502698]
[1763436247748,0.4354,2982.7,2982.4,0.00502698]
[1763436248345,0.4354,2982.7,2980.7,2.39761657]
[1763436248346,0.4354,2982.0,2980.5,3.2078]
[1763436248529,2.16003358,2981.8,2981.7,4.289e-05]
[1763436248936,3.2078,2981.9,2981.7,4.289e-05]
[1763436249342,3.2078,2981.9,2980.8,3.2078]
[1763436249550,3.2078,2981.3,2980.8,3.2078]
[1763436250049,3.2078,2981.3,2980.5,3.2078]
[1763436250552,3.2078,2981.7,2980.9,3.2078]
[1763436251450,3.6432,2982.0,2981.3,3.2078]
[1763436251649,0.4354,2982.0,2981.3,3.2078]
[1763436252349,0.00502698,2981.9,2981.4,0.0033513]
[1763436253254,0.00502698,2981.9,2980.5,3.2078]
[1763436253255,0.4354,2981.3,2980.5,3.2078]
[1763436253554,3.2078,2981.8,2981.1,3.2078]
[1763436253850,3.2078,2981.8,2980.9,3.2078]
[1763436254042,3.2078,2981.8,2981.1,3.2078]
[1763436254249,0.4354,2981.3,2981.1,0.00294601]
[1763436254445,3.2078,2981.2,2980.5,3.2078]
[1763436254952,0.4354,2981.3,2980.5,3.2078]
[1763436255257,3.2078,2981.2,2980.3,3.2078]
[1763436255553,0.4354,2981.3,2980.0,3.2078]
[1763436255554,3.2078,2980.8,2980.0,3.2078]
[1763436255855,3.2078,2980.4,2979.6,3.2078]
[1763436256039,0.00502698,2980.3,2979.9,3.2078]
[1763436256244,0.00850322,2980.3,2979.9,3.21148279]
[1763436256454,0.00850322,2980.3,2978.7,3.82787021]
[1763436256455,3.2078,2980.1,2978.7,3.2078]
[1763436256651,3.2078,2979.7,2978.7,3.50395679]
[1763436256954,3.2078,2979.7,2979.0,3.2078]
[1763436257550,3.2078,2979.7,2979.0,3.21109078]
[1763436257861,0.4354,2979.9,2979.0,3.21109078]
[1763436258054,0.4354,2979.9,2979.3,3.2078]
[1763436258357,3.2078,2980.1,2979.3,3.2078]
[1763436258552,0.00850322,2980.3,2979.7,3.2078]
[1763436258847,0.00850322,2980.3,2979.4,3.2078]
[1763436259253,0.00850322,2980.3,2979.7,3.2078]
[1763436260653,5.36783358,2979.8,2979.0,0.00329078]
[1763436260959,3.2078,2979.1,2979.0,0.00329078]
[1763436261158,4.0764417,2979.1,2979.0,0.00329078]
[1763436261552,1.16803246,2980.2,2979.2,0.447]
[1763436261760,0.00850322,2980.3,2980.0,0.447]
[1763436262851,3.2078,2981.1,2980.8,0.447]
[1763436263860,3.21188389,2981.1,2980.8,0.447]
[1763436264153,3.2078,2982.0,2981.6,0.447]
[1763436264558,3.2078,2982.3,2981.6,0.447]
[1763436264761,3.2078,2982.4,2981.6,0.447]
[1763436264956,3.2078,2982.4,2981.6,0.74135664]
[1763436265264,0.00502698,2982.3,2981.7,3.2078]
[1763436266155,3.2078,2982.1,2981.6,0.45102411]
[1763436267057,3.2078,2983.4,2982.4,0.5379]
[1763436267251,3.2078,2982.9,2982.4,0.5379]
[1763436267446,3.2078,2983.2,2982.4,0.5379]
[1763436267646,3.2078,2983.2,2982.5,3.2078]
[1763436267857,3.2078,2983.5,2983.2,0.5379]
[1763436268157,3.21136418,2983.5,2983.2,0.5379]
[1763436272762,3.21136418,2983.5,2983.1,0.00502698]
[1763436272964,3.2078,2983.2,2983.1,0.00502698]
[1763436273163,3.2078,2983.2,2983.1,2.698e-05]
[1763436273458,9.2078,2983.2,2981.9,3.2078]
[1763436273660,3.2078,2982.2,2980.7,2.16003358]
[1763436273864,2.16003358,2982.6,2981.0,6.6448]
[1763436273865,3.2078,2981.8,2981.0,6.6448]
[1763436274060,3.2078,2981.8,2980.7,2.16003358]
[1763436274260,3.2078,2981.8,2981.6,0.00402411]
[1763436274758,3.2078,2981.8,2981.6,0.54192411]
[1763436274963,0.00502698,2982.0,2981.6,0.54192411]
[1763436275166,3.2078,2981.8,2981.6,0.54192411]
[1763436275663,0.00502698,2982.0,2981.6,0.54192411]
[1763436276963,3.2078,2981.7,2981.6,0.54192411]
[1763436277856,0.00502698,2982.0,2981.6,0.54192411]
[1763436277857,3.21282698,2982.0,2981.6,0.54192411]
[1763436279059,3.2078,2982.7,2982.4,0.5379]
[1763436279460,3.2078,2982.7,2981.8,3.2078]
[1763436279661,3.2078,2982.1,2982.0,0.5379]
[1763436280464,3.2078,2983.2,2982.0,0.5379]
[1763436280664,3.2078,2983.2,2982.3,3.2078]
[1763436280860,3.2078,2983.2,2982.1,2.16003358]
[1763436281068,3.2078,2982.9,2982.7,0.5379]
[1763436281764,5.36783358,2982.9,2981.6,0.54192411]
[1763436281966,3.2078,2981.9,2981.6,0.00402411]
[1763436282263,3.2078,2982.2,2982.0,0.5379]
[1763436282863,3.2078,2982.7,2982.0,1.08179]
[1763436283257,0.00502698,2983.1,2982.7,0.5379]
[1763436284965,0.00502698,2983.1,2982.7,1.08167]
[1763436285472,0.00502698,2983.1,2982.7,0.5379]
[1763436286577,3.2078,2982.8,2982.0,0.5379]
[1763436286775,3.2078,2982.5,2982.0,0.5379]
[1763436287568,0.00502698,2983.1,2982.0,0.5379]
[1763436287569,3.2078,2982.9,2982.7,0.5379]
[1763436287769,3.2078,2982.8,2982.0,0.5379]
[1763436287968,3.2078,2982.1,2982.0,0.5379]
[1763436288470,9.2078,2982.1,2981.6,0.00402411]
[1763436288674,3.2078,2982.1,2981.6,0.00402411]
[1763436288866,3.2078,2982.3,2981.6,0.00402411]
[1763436289074,3.2078,2982.5,2982.0,0.5379]
[1763436289274,3.2078,2982.2,2982.0,0.5379]
[1763436289874,3.2078,2982.5,2982.0,0.5379]
[1763436291379,3.2078,2982.2,2982.0,0.5379]
[1763436295982,3.2078,2982.5,2982.0,0.5379]
[1763436298172,0.00502698,2983.1,2982.0,0.5379]
[1763436298173,0.00502698,2983.1,2982.7,0.4878]
[1763436298787,3.2078,2983.0,2982.7,0.4878]
[1763436299784,0.00502698,2983.1,2982.7,0.4878]
[1763436300271,0.00502698,2983.1,2982.8,0.54375]
[1763436300472,0.00502698,2983.1,2982.7,0.4878]
[1763436300473,2.698e-05,2983.1,2983.0,3.2078]
[1763436300882,2.698e-05,2983.1,2983.0,6.5598]
[1763436301189,3.2078,2984.8,2984.1,0.4878]
[1763436301677,3.2078,2984.8,2984.1,3.6956]
[1763436302079,3.2078,2984.8,2984.1,0.4878]
[1763436302279,3.2078,2984.5,2984.1,0.4878]
[1763436302478,3.21181303,2984.8,2984.1,3.69823236]
[1763436302678,3.21181303,2984.8,2984.1,0.49043236]
[1763436302874,3.2078,2984.3,2984.2,0.00502698]
[1763436303282,0.00502698,2984.7,2984.2,0.00502698]
[1763436303283,3.2078,2984.6,2984.2,0.00502698]
[1763436303677,0.00502698,2984.7,2984.2,0.00502698]
[1763436304184,0.00502698,2984.7,2984.2,3.21282698]
[1763436304392,3.2078,2984.6,2984.2,0.00502698]
[1763436304774,3.2078,2984.3,2983.4,0.4878]
[1763436304991,3.2078,2983.7,2982.6,3.2078]
[1763436305285,3.2078,2983.4,2982.6,3.2078]
[1763436305488,3.2078,2983.7,2982.9,3.2078]
[1763436305681,3.2078,2984.1,2983.4,0.4878]
[1763436306188,3.2078,2984.1,2983.4,3.6956]
[1763436306386,3.2078,2984.5,2984.1,0.4878]
[1763436306689,3.2078,2984.5,2984.1,0.49189211]
[1763436307073,0.00502698,2984.7,2984.1,0.49189211]
[1763436307482,3.2078,2984.3,2984.1,0.49189211]
[1763436308588,3.2078,2984.3,2984.1,0.00409211]
[1763436309081,3.2078,2984.3,2983.4,0.4878]
[1763436309285,3.2078,2983.9,2983.4,0.4878]
[1763436310091,3.2078,2983.9,2983.4,0.4966293]
[1763436312090,0.00502698,2984.7,2984.1,0.4878]
[1763436312091,3.2078,2984.2,2984.1,0.4878]
[1763436312784,3.2078,2984.2,2983.4,0.4966293]
[1763436312987,3.2078,2983.9,2983.4,0.4966293]
[1763436313588,0.00502698,2984.7,2984.1,0.4878]
[1763436313589,3.2078,2984.2,2984.1,0.4878]
[1763436314481,3.2078,2984.2,2983.4,0.4966293]
[1763436315182,3.2078,2983.9,2983.4,0.4966293]
[1763436316487,3.2078,2983.9,2983.8,0.4878]
[1763436316684,3.2078,2983.9,2983.4,0.4966293]
[1763436318898,0.00502698,2984.7,2983.4,0.4966293]
[1763436318899,3.2078,2983.6,2983.4,0.4966293]
[1763436319688,3.2078,2983.6,2983.4,0.0088293]
[1763436320292,3.2078,2983.6,2981.6,2.51557588]
[1763436320293,3.2078,2983.6,2982.0,3.7457]
[1763436320589,3.2078,2982.9,2982.0,4.57647738]
[1763436320793,3.2078,2982.4,2982.0,0.5379]
[1763436321194,3.21057131,2982.4,2982.0,0.54085647]
[1763436322884,0.00277131,2982.4,2982.1,0.54389]
[1763436323088,0.00502698,2982.5,2982.0,3.74865647]
[1763436323289,0.00502698,2982.5,2982.0,4.29254647]
[1763436323695,0.00502698,2982.5,2982.0,3.74865647]
[1763436324400,0.00826225,2982.5,2982.0,3.74865647]
[1763436324798,0.00826225,2982.5,2982.0,0.54085647]
[1763436325004,3.2078,2982.3,2982.0,0.54085647]
[1763436325601,3.2078,2982.3,2982.0,0.00295647]
[1763436326703,3.2078,2982.3,2982.0,0.43405647]
[1763436327496,3.2078,2982.3,2981.4,3.6956]
[1763436327698,3.2078,2981.5,2980.8,3.6389]
[1763436327905,3.2078,2981.5,2980.8,0.4311]
[1763436328111,3.2078,2981.2,2980.8,0.4311]
[1763436328310,3.2078,2980.9,2980.8,0.4311]
[1763436328509,3.2078,2980.9,2979.0,2.99702071]
[1763436328510,4.09463255,2980.9,2979.1,0.28464026]
[1763436328699,3.2078,2980.0,2979.9,0.4138]
[1763436328905,3.2078,2980.6,2979.9,0.4138]
[1763436329104,3.2078,2980.3,2979.9,0.4138]
[1763436329307,0.00502698,2980.4,2979.9,0.4138]
[1763436329609,3.2161124,2980.4,2979.9,0.41640715]
[1763436329805,0.0083124,2980.4,2979.9,3.62420715]
[1763436330007,0.0083124,2980.4,2979.9,0.41640715]
[1763436330499,3.2161124,2980.4,2979.9,0.41640715]
[1763436330717,3.2161124,2980.4,2979.9,3.62420715]
[1763436331008,3.2161124,2980.4,2980.3,3.2078]
[1763436331009,0.0083124,2980.4,2980.3,3.2078]
[1763436331204,1.24e-05,2980.4,2980.2,0.54423]
[1763436331611,1.24e-05,2980.4,2980.3,3.2078]
[1763436333716,3.2078124,2980.4,2979.9,0.41640715]
[1763436333914,1.24e-05,2980.4,2979.9,3.62420715]
[1763436334115,1.24e-05,2980.4,2979.9,0.41640715]
[1763436334315,1.24e-05,2980.4,2979.9,3.62420715]
[1763436334516,3.2078124,2980.4,2979.9,3.62420715]
[1763436334716,3.2078124,2980.4,2979.9,0.41640715]
[1763436335317,3.2078,2980.1,2979.9,0.00260715]
[1763436336225,0.00502698,2980.6,2980.3,0.54421]
[1763436336520,0.00502698,2980.6,2980.0,3.75207]
[1763436336912,0.00502698,2980.6,2980.0,3.2078]
[1763436337117,0.00502698,2980.6,2980.1,0.54425]
[1763436337318,0.00502698,2980.6,2980.0,3.2078]
[1763436337918,3.2078,2980.5,2980.0,3.2078]
[1763436338119,0.0080092,2980.6,2980.0,3.2078]
[1763436338314,3.2078,2980.5,2980.0,3.2078]
[1763436338516,0.0080092,2980.6,2980.0,3.2078]
[1763436338818,3.2078,2980.5,2980.0,3.2078]
[1763436339123,3.2078,2980.2,2979.9,0.41640715]
[1763436339321,3.2078,2980.5,2979.9,0.41640715]
[1763436339620,3.2078,2980.2,2979.9,0.41640715]
[1763436340524,3.2078,2980.2,2979.9,0.00260715]
[1763436341326,3.2078,2980.2,2979.9,7.15e-06]
[1763436344228,3.2078,2980.2,2979.9,0.41380715]
[1763436345828,3.2078,2980.2,2979.2,0.4138]
[1763436345829,3.17049168,2980.1,2977.9,3.2078]
[1763436346029,3.2078,2978.9,2978.2,3.2078]
[1763436346222,3.2078,2978.6,2977.9,3.2078]
[1763436346827,3.2078,2978.6,2978.5,0.4165643]
[1763436347228,3.2078,2978.6,2978.5,0.0027643]
[1763436347522,3.2078,2978.6,2978.3,0.00503575]
[1763436348540,3.2078,2978.6,2978.5,0.4138]
[1763436349639,3.2078,2978.6,2978.4,0.4138]
[1763436351132,0.00503575,2978.8,2978.7,0.7121]
[1763436351636,0.00503575,2978.8,2978.4,0.4138]
[1763436351941,3.2078,2978.6,2978.4,0.4138]
[1763436353535,0.86968335,2978.5,2978.3,0.0074967]
[1763436353740,0.87253113,2978.5,2978.3,0.0074967]
[1763436355232,0.87253113,2978.5,2977.8,0.4138]
[1763436355541,3.2078,2978.0,2977.8,0.4138]
[1763436355741,0.86968335,2977.9,2977.8,0.4138]
[1763436355941,0.86968335,2978.2,2977.8,0.4138]
[1763436356532,0.86968335,2978.2,2977.8,0.41645518]
[1763436356939,0.86968335,2978.2,2978.1,0.7121]
[1763436358141,0.86968335,2978.2,2977.8,0.41645518]
[1763436358444,0.86968335,2978.1,2977.8,0.41645518]
[1763436358635,0.86968335,2978.0,2977.8,0.41645518]
[1763436358834,4.37583246,2978.3,2977.8,0.41645518]
[1763436358835,0.86968335,2977.9,2977.8,0.41645518]
[1763436359035,0.86968335,2978.1,2977.8,0.41645518]
[1763436359237,0.86968335,2978.0,2977.8,0.41645518]
[1763436359444,0.86968335,2977.9,2977.8,0.41645518]
[1763436359836,0.86968335,2978.2,2977.8,1.06235518]
[1763436360037,0.86968335,2978.1,2977.8,1.06235518]
[1763436360335,0.86968335,2978.0,2977.8,1.06235518]
[1763436360539,0.86968335,2977.9,2977.8,1.06235518]
[1763436360738,0.86968335,2978.2,2977.8,1.60702518]
[1763436360941,0.86968335,2978.2,2978.1,1.19052]
[1763436361133,0.00284778,2978.5,2978.4,1.0448]
[1763436361339,0.87431904,2978.5,2978.4,0.3989]
[1763436362642,6.87431904,2978.5,2977.8,0.41645518]
[1763436362847,3.2078,2977.9,2977.8,0.41645518]
[1763436363040,4.07927126,2977.9,2977.8,0.41645518]
[1763436363240,0.86618625,2977.9,2977.8,0.41645518]
[1763436363534,4.07398625,2977.9,2977.8,0.41645518]
[1763436364035,7.39946486,2977.9,2977.1,0.4138]
[1763436364237,3.2078,2977.4,2976.4,3.2078]
[1763436364435,3.2078,2977.0,2976.4,3.2078]
[1763436364638,0.86618625,2976.9,2976.4,3.2078]
[1763436365440,0.86618625,2976.9,2976.6,0.41650895]
[1763436365948,2.02326269,2976.8,2976.6,0.00270895]
[1763436366143,0.86618625,2976.7,2976.6,0.40160895]
[1763436366539,0.86618625,2976.9,2976.6,0.40160895]
[1763436366846,0.86618625,2976.9,2936.5,3.889]
[1763436366847,8.54669385,2976.7,2975.0,3.2078]
[1763436367037,3.2078,2975.9,2975.0,3.2078]
[1763436367350,3.2078,2975.6,2974.9,3.2078]
[1763436367547,0.871222,2975.5,2974.9,3.2078]
[1763436367847,0.871222,2975.5,2975.0,3.2078]
[1763436368041,0.87461879,2975.5,2975.0,3.21090336]
[1763436368236,0.87461879,2975.5,2975.0,0.00310336]
[1763436368437,0.87461879,2975.5,2975.1,3.2078]
[1763436368643,0.86618625,2975.4,2975.0,0.00310336]
[1763436368951,1.15625347,2975.1,2974.3,0.3989]
[1763436369146,3.2078,2974.7,2974.3,0.3989]
[1763436369448,3.2078,2974.4,2973.7,0.03362871]
[1763436369650,2.16840217,2973.8,2972.4,3.2078]
[1763436369839,3.2078,2973.6,2972.9,0.3989]
[1763436370042,0.86618625,2973.7,2972.9,0.3989]
[1763436370043,3.2078,2973.9,2973.6,0.3989]
[1763436370348,3.2078,2973.9,2972.9,0.3989]
[1763436370647,3.2078,2973.1,2972.9,0.3989]
[1763436370838,3.2078,2973.1,2972.4,0.0034419]
[1763436370839,3.21176131,2973.1,2972.4,0.0034419]
[1763436371439,3.2078,2972.7,2972.4,0.0034419]
[1763436371741,0.00396131,2973.1,2972.8,0.3989]
[1763436372742,3.21176131,2973.1,2972.4,0.0034419]
[1763436372942,3.2078,2972.9,2972.4,0.0034419]
[1763436373241,0.00396131,2973.1,2972.8,0.3989]
[1763436375049,3.2078,2972.9,2972.8,0.3989]
[1763436375448,3.2078,2972.9,2972.4,0.0034419]
[1763436375647,3.2078,2972.5,2972.4,0.0034419]
[1763436376549,3.2078,2972.9,2972.4,0.0034419]
[1763436376755,0.00396131,2973.1,2972.9,0.3989]
[1763436377250,0.00396131,2973.1,2972.9,9.6067]
[1763436377456,0.00396131,2973.1,2972.9,4.15226]
[1763436377650,0.0050443,2974.0,2973.2,0.54551]
[1763436377961,3.2078,2974.5,2974.3,0.3989]
[1763436378151,3.15248406,2974.5,2974.3,0.3989]
[1763436378351,3.15248406,2974.5,2973.8,3.2078]
[1763436378551,2.16840217,2976.0,2973.6,0.3989]
[1763436378552,3.2078,2974.2,2973.6,0.3989]
[1763436378747,3.21098935,2974.2,2973.6,0.3989]
[1763436378954,3.21603365,2974.2,2973.6,0.4039443]
[1763436379250,0.00823365,2974.2,2973.6,0.4039443]
[1763436379455,3.21603365,2974.2,2973.6,3.6117443]
[1763436380054,3.2078,2974.2,2973.6,3.6117443]
[1763436380448,3.2078,2974.8,2973.9,3.2078]
[1763436380949,3.2078,2974.5,2973.6,3.6117443]
[1763436381156,3.2078,2974.2,2973.6,0.4039443]
[1763436382258,3.2078,2974.2,2973.3,3.08184059]
[1763436382557,3.2078,2973.5,2972.4,3.2112419]
[1763436382777,3.2078,2973.1,2972.4,0.0034419]
[1763436383059,3.14952283,2973.1,2972.4,0.0034419]
[1763436383448,0.0050443,2973.0,2972.5,0.0050443]
[1763436383955,0.0050443,2973.0,2972.8,0.3932]
[1763436384156,0.0050443,2973.0,2972.5,0.0050443]
[1763436384353,3.2078,2972.8,2972.5,0.0050443]
[1763436384953,3.2078,2972.8,2971.1,0.54588]
[1763436384954,9.17049168,2972.7,2971.1,3.2078]
[1763436385161,3.2078,2971.8,2971.1,3.2078]
[1763436385558,3.18945291,2971.8,2971.1,3.2078]
[1763436385957,3.2062756,2972.4,2971.4,3.2078]
[1763436386153,3.2062756,2972.4,2971.1,0.0033651]
[1763436386154,0.0050443,2973.0,2972.8,0.3932]
[1763436387155,0.00912886,2973.0,2972.8,0.3932]
[1763436388157,3.21692886,2973.0,2972.8,0.3932]
[1763436388357,3.21692886,2973.0,2972.0,2.56160217]
[1763436388557,3.21692886,2973.0,2972.0,0.3932]
[1763436388558,3.2078,2972.7,2972.0,0.3932]
[1763436389159,3.2078,2972.7,2972.0,2.56160217]
[1763436389855,3.2078,2972.7,2972.2,3.2078]
[1763436390057,0.00912886,2973.0,2972.2,3.2078]